bitfinex/quotes_BTCUSD_20220120
["timestamp","ask_amount","ask_price","bid_price","bid_amount"]
[1642663929122,1.00241405,41991.0,41987.0,0.24]
[1642663929328,1.00350819,41991.0,41987.0,0.24]
[1642663929723,1.00350819,41991.0,41987.0,0.247]
[1642663930325,0.90241405,41991.0,41987.0,0.2589]
[1642663930525,0.90350819,41991.0,41987.0,0.247]
[1642663930928,0.90350819,41991.0,41987.0,0.24]
[1642663931529,1.00241405,41991.0,41987.0,0.24]
[1642663931725,1.00350819,41991.0,41987.0,0.247]
[1642663933053,1.00350819,41991.0,41987.0,0.24]
[1642663933855,1.00241405,41991.0,41987.0,0.247]
[1642663934059,1.00350819,41991.0,41987.0,0.247]
[1642663934455,1.00350819,41991.0,41987.0,0.2373527]
[1642663935056,1.00241405,41991.0,41987.0,0.2303527]
[1642663935256,1.00350819,41991.0,41987.0,0.2303527]
[1642663935458,0.95350819,41991.0,41987.0,0.2303527]
[1642663935658,0.83441826,41991.0,41987.0,0.2303527]
[1642663935860,0.83441826,41991.0,41987.0,0.2353527]
[1642663936257,0.83332412,41991.0,41987.0,0.2353527]
[1642663936461,0.83441826,41991.0,41987.0,0.2353527]
[1642663936909,0.83441826,41991.0,41987.0,0.2303527]
[1642663937507,0.83332412,41991.0,41987.0,0.2303527]
[1642663937716,1.00351055,41991.0,41987.0,0.2383527]
[1642663938710,1.00241641,41991.0,41987.0,0.2383527]
[1642663938909,1.00351055,41991.0,41987.0,0.2303527]
[1642663939110,1.24823654,41991.0,41987.0,0.2303527]
[1642663939711,1.24823654,41991.0,41987.0,0.2363527]
[1642663939911,1.2471424,41991.0,41987.0,0.2363527]
[1642663940110,1.24823654,41991.0,41987.0,0.2363527]
[1642663940955,1.24823654,41991.0,41987.0,0.2303527]
[1642663941156,1.2471424,41991.0,41987.0,0.2303527]
[1642663941355,1.24823654,41991.0,41987.0,0.2303527]
[1642663941756,1.24823654,41991.0,41987.0,0.2353527]
[1642663942257,1.2471424,41991.0,41987.0,0.2353527]
[1642663942457,1.24823654,41991.0,41987.0,0.2353527]
[1642663942862,0.384444,41990.0,41987.0,0.2353527]
[1642663943063,0.384444,41990.0,41987.0,0.2303527]
[1642663943064,0.0479,41989.0,41987.0,0.2303527]
[1642663943261,0.663944,41988.0,41987.0,0.2303527]
[1642663943461,0.45,41987.0,41979.0,0.31851072]
[1642663943662,0.05955776,41985.0,41979.0,0.31851072]
[1642663943864,0.05955776,41985.0,41980.0,0.00015471]
[1642663944102,0.10955776,41985.0,41980.0,0.00015471]
[1642663944905,0.11065198,41985.0,41980.0,0.00015471]
[1642663945704,0.11065198,41985.0,41980.0,0.00915471]
[1642663945903,0.10955776,41985.0,41980.0,0.00915471]
[1642663946105,0.11065198,41985.0,41981.0,0.00013752]
[1642663947204,0.10955776,41985.0,41981.0,0.00013752]
[1642663947506,0.11065198,41985.0,41981.0,0.00013752]
[1642663947704,0.11065198,41985.0,41981.0,0.00813752]
[1642663947959,0.11065198,41985.0,41982.0,0.00012033]
[1642663948362,0.10955776,41985.0,41982.0,0.00012033]
[1642663949764,0.10955776,41985.0,41982.0,0.00812033]
[1642663950271,0.10955776,41985.0,41983.0,0.00010314]
[1642663950465,0.40955776,41985.0,41977.0,0.5446]
[1642663950669,0.059558,41983.0,41977.0,0.5446]
[1642663950867,0.05955788,41982.0,41978.0,8.595e-05]
[1642663951066,0.10955788,41982.0,41978.0,8.595e-05]
[1642663951266,0.10955788,41982.0,41976.0,0.00012033]
[1642663951705,0.10955788,41982.0,41976.0,0.2934582]
[1642663952109,0.11065212,41982.0,41977.0,0.00010314]
[1642663953206,0.10955788,41982.0,41977.0,0.00010314]
[1642663953406,0.11065212,41982.0,41977.0,0.00010314]
[1642663953808,0.11065212,41982.0,41977.0,0.01310314]
[1642663954409,0.10955788,41982.0,41977.0,0.01310314]
[1642663954616,0.11065212,41982.0,41977.0,0.01310314]
[1642663955111,0.11065212,41982.0,41977.0,0.00010314]
[1642663955551,0.10955788,41982.0,41977.0,0.00010314]
[1642663955755,0.11065212,41982.0,41977.0,0.01410314]
[1642663957052,0.11065212,41982.0,41977.0,0.00010314]
[1642663957853,0.10955788,41982.0,41977.0,0.01310314]
[1642663958058,0.11065212,41982.0,41977.0,0.01310314]
[1642663959208,0.10955788,41982.0,41977.0,0.01310314]
[1642663959508,0.11065212,41982.0,41977.0,0.01310314]
[1642663960407,0.10955788,41982.0,41977.0,0.01310314]
[1642663960609,0.11065212,41982.0,41977.0,0.01310314]
[1642663961610,0.10955788,41982.0,41977.0,0.01310314]
[1642663961815,0.11065212,41982.0,41977.0,0.02510314]
[1642663962853,0.10955788,41982.0,41977.0,0.02510314]
[1642663963058,0.11065212,41982.0,41977.0,0.00010314]
[1642663963856,0.10955788,41982.0,41977.0,0.01210314]
[1642663964055,0.11065212,41982.0,41977.0,0.01210314]
[1642663965063,0.20376261,41978.0,41977.0,0.00010314]
[1642663965358,0.25376261,41978.0,41977.0,0.38454714]
[1642663965559,0.30376261,41978.0,41977.0,0.38454714]
[1642663965759,0.30376261,41978.0,41977.0,0.40554714]
[1642663967006,0.1,41978.0,41977.0,0.40554714]
[1642663967305,0.1,41978.0,41977.0,0.38454714]
[1642663967906,0.1,41978.0,41977.0,0.40154714]
[1642663969107,0.1,41978.0,41977.0,0.38454714]
[1642663969910,0.1,41978.0,41977.0,0.40454714]
[1642663970955,0.31369775,41978.0,41977.0,0.40454714]
[1642663971259,0.31369775,41978.0,41976.0,0.24]
[1642663971260,0.66803509,41978.0,41976.0,0.24]
[1642663971456,0.35,41976.0,41969.0,1.76125771]
[1642663971658,0.22661794,41975.0,41970.0,0.384444]
[1642663971858,0.05,41974.0,41970.0,0.00012033]
[1642663972056,0.0479,41973.0,41970.0,0.00012033]
[1642663972257,0.0479,41973.0,41969.0,0.00013752]
[1642663972458,0.0479,41973.0,41968.0,0.00015471]
[1642663972657,0.0479,41973.0,41967.0,0.0001719]
[1642663972865,0.05957564,41971.0,41967.0,0.0001719]
[1642663973060,0.22872464,41971.0,41968.0,0.384444]
[1642663973359,0.11914984,41970.0,41969.0,0.00013752]
[1642663973559,0.16914984,41970.0,41969.0,0.00013752]
[1642663973759,0.109574,41970.0,41967.0,0.00053865]
[1642663973959,0.140574,41970.0,41969.0,0.01]
[1642663974409,0.140574,41970.0,41969.0,0.01013752]
[1642663975210,0.109574,41970.0,41969.0,0.38458152]
[1642663975812,0.140574,41970.0,41969.0,0.39458152]
[1642663976015,0.081,41970.0,41969.0,0.39458152]
[1642663977214,0.05,41970.0,41969.0,0.38458152]
[1642663977855,0.081,41970.0,41969.0,0.39458152]
[1642663978857,0.081,41970.0,41969.0,0.39708339]
[1642663979058,0.05,41970.0,41969.0,0.38708339]
[1642663979459,0.10957431,41971.0,41969.0,0.38708339]
[1642663979860,0.031,41970.0,41969.0,0.39708339]
[1642663981162,0.05,41971.0,41969.0,0.38708339]
[1642663981913,0.08190478,41971.0,41969.0,0.39708339]
[1642663983111,0.04990478,41971.0,41969.0,0.38708339]
[1642663983925,0.08290478,41971.0,41969.0,0.39708339]
[1642663984315,0.05956812,41970.0,41969.0,0.39708339]
[1642663984514,0.05956812,41970.0,41969.0,0.66832947]
[1642663984714,0.08290478,41971.0,41969.0,0.66832947]
[1642663985113,0.033,41971.0,41969.0,0.65832947]
[1642663985358,0.05,41972.0,41969.0,0.65832947]
[1642663985964,0.13,41972.0,41969.0,0.66832947]
[1642663986561,0.13,41972.0,41969.0,0.39708339]
[1642663986963,0.08,41972.0,41969.0,0.39708339]
[1642663987162,0.05,41972.0,41969.0,0.9953411]
[1642663987964,0.05,41972.0,41969.0,1.0053411]
[1642663987965,0.078,41972.0,41969.0,1.0053411]
[1642663988571,0.078,41972.0,41969.0,0.39708339]
[1642663988765,0.128,41972.0,41969.0,1.0053411]
[1642663988965,0.128,41972.0,41969.0,0.39458152]
[1642663989211,0.1,41972.0,41969.0,0.38458152]
[1642663990013,0.128,41972.0,41969.0,1.00283923]
[1642663990614,0.128,41972.0,41970.0,0.2741417]
[1642663990815,0.128,41972.0,41971.0,0.384444]
[1642663991015,0.128,41972.0,41971.0,0.40010314]
[1642663991227,0.1,41972.0,41971.0,0.40010314]
[1642663991716,0.1,41972.0,41971.0,0.00010314]
[1642663991914,0.128,41972.0,41971.0,0.00910314]
[1642663993160,0.1,41972.0,41971.0,0.00010314]
[1642663993360,0.05,41972.0,41971.0,0.00010314]
[1642663993961,0.07,41972.0,41971.0,0.01159975]
[1642663994360,0.07,41972.0,41971.0,0.31159975]
[1642663994561,0.07,41972.0,41971.0,0.69604375]
[1642663995162,0.05,41972.0,41971.0,0.68704375]
[1642663995863,0.05,41972.0,41971.0,0.69804375]
[1642663997107,0.05,41972.0,41971.0,0.68704375]
[1642663998007,0.05,41972.0,41971.0,0.69804375]
[1642663998707,0.05,41972.0,41971.0,0.39804375]
[1642663999109,0.05,41972.0,41971.0,0.38621154]
[1642663999908,0.05,41972.0,41971.0,0.01276754]
[1642664000758,0.54688359,41972.0,41971.0,0.01276754]
[1642664000959,0.66112359,41972.0,41971.0,0.01276754]
[1642664001162,1.04556759,41972.0,41971.0,0.00176754]
[1642664001358,1.04556759,41972.0,41969.0,0.00104227]
[1642664001561,0.109577,41971.0,41969.0,0.00104227]
[1642664001755,0.157477,41971.0,41969.0,0.00104227]
[1642664001956,0.157477,41971.0,41969.0,0.01004227]
[1642664002357,0.157477,41971.0,41969.0,0.009]
[1642664003257,0.157477,41971.0,41968.0,0.00104233]
[1642664003458,0.157477,41971.0,41965.0,0.61576642]
[1642664003658,0.1191496,41970.0,41968.0,0.00104233]
[1642664003859,0.1691496,41970.0,41968.0,0.00104233]
[1642664004708,0.1691496,41970.0,41966.0,8.595e-05]
[1642664004909,0.1691496,41970.0,41967.0,0.38548636]
[1642664005310,0.109575,41970.0,41967.0,0.38548636]
[1642664005510,0.109575,41970.0,41967.0,0.38555451]
[1642664005910,0.127575,41970.0,41967.0,1.27659624]
[1642664006310,0.127575,41970.0,41967.0,1.00276986]
[1642664006716,0.127575,41970.0,41968.0,0.60825771]
[1642664006911,0.127575,41970.0,41969.0,0.384444]
[1642664007109,0.127575,41970.0,41969.0,0.38451215]
[1642664007309,0.109575,41970.0,41969.0,0.38451215]
[1642664007512,0.059575,41970.0,41969.0,0.38451215]
[1642664008062,0.059575,41970.0,41969.0,0.39451215]
[1642664008562,0.109575,41970.0,41969.0,0.39451215]
[1642664008965,0.06318763,41970.0,41969.0,0.39451215]
[1642664009270,0.06318763,41970.0,41969.0,0.99276986]
[1642664010065,0.06318763,41970.0,41969.0,1.00476986]
[1642664010466,0.06318763,41970.0,41969.0,0.39651215]
[1642664010972,0.11318763,41970.0,41969.0,0.39651215]
[1642664011166,0.11318763,41970.0,41969.0,0.38451215]
[1642664012213,0.11518763,41970.0,41969.0,0.39451215]
[1642664012413,0.11518763,41970.0,41969.0,1.00276986]
[1642664013913,0.11318763,41970.0,41969.0,0.99276986]
[1642664014114,0.11518763,41970.0,41969.0,1.00376986]
[1642664014716,0.06518763,41970.0,41969.0,1.00376986]
[1642664015116,0.06495808,41970.0,41969.0,1.00376986]
[1642664015364,0.06295808,41970.0,41969.0,0.99276986]
[1642664015964,0.06295808,41970.0,41969.0,1.00376986]
[1642664016564,0.06295808,41970.0,41969.0,0.39551215]
[1642664017364,0.06295808,41970.0,41969.0,0.38451215]
[1642664017967,0.04761263,41970.0,41969.0,0.39236314]
[1642664018568,0.04761263,41970.0,41969.0,2.11659483]
[1642664018774,0.04761263,41970.0,41969.0,0.39236314]
[1642664019410,0.00361263,41970.0,41969.0,2.38008345]
[1642664020010,0.00361263,41970.0,41969.0,2.39308345]
[1642664020611,0.00361263,41970.0,41969.0,2.38808345]
[1642664021011,0.00361263,41970.0,41969.0,2.11460354]
[1642664022010,0.00361263,41970.0,41969.0,2.12860354]
[1642664022864,0.00361263,41970.0,41969.0,2.10160354]
[1642664023660,0.00361263,41970.0,41969.0,0.37736314]
[1642664023860,0.00361263,41970.0,41969.0,6.815e-05]
[1642664025162,0.00361263,41970.0,41969.0,0.38459615]
[1642664025960,0.00361263,41970.0,41969.0,0.39659615]
[1642664026913,0.00361263,41970.0,41969.0,1.00517238]
[1642664027312,0.00361263,41970.0,41969.0,0.60864438]
[1642664028114,0.00361263,41970.0,41969.0,0.61964438]
[1642664028315,0.00361263,41970.0,41969.0,1.00417238]
[1642664028516,0.00361263,41970.0,41969.0,0.39559615]
[1642664029414,0.00361263,41970.0,41969.0,6.815e-05]
[1642664029613,0.00361263,41970.0,41969.0,0.38459615]
[1642664030020,0.01661263,41970.0,41969.0,0.39459615]
[1642664031365,0.00361263,41970.0,41969.0,0.38459615]
[1642664032166,0.01061263,41970.0,41969.0,0.39359615]
[1642664032466,0.07018535,41970.0,41969.0,0.39359615]
[1642664032673,0.07018535,41970.0,41969.0,0.37860417]
[1642664033267,0.06318535,41970.0,41969.0,0.36960417]
[1642664034133,0.06918535,41970.0,41969.0,0.37860417]
[1642664035338,0.06338535,41970.0,41969.0,0.36960417]
[1642664035735,0.06338535,41970.0,41969.0,0.9781804]
[1642664036035,0.08038535,41970.0,41969.0,0.9871804]
[1642664037035,0.02081263,41970.0,41969.0,0.9871804]
[1642664037435,0.00381263,41970.0,41969.0,0.9781804]
[1642664038062,0.00381263,41970.0,41969.0,0.9891804]
[1642664038863,0.00381263,41970.0,41969.0,0.38060417]
[1642664039263,0.00381263,41970.0,41969.0,0.97814752]
[1642664039464,0.00381263,41970.0,41969.0,0.36960417]
[1642664040263,0.00381263,41970.0,41969.0,0.38060417]
[1642664041364,0.00381263,41970.0,41969.0,0.36960417]
[1642664042015,0.00381263,41970.0,41969.0,1.07923817]
[1642664042215,0.00381263,41970.0,41969.0,2.10484682]
[1642664043415,0.00381263,41970.0,41969.0,2.09384682]
[1642664044216,0.00381263,41970.0,41969.0,2.10484682]
[1642664045217,0.00381263,41970.0,41969.0,0.38060417]
[1642664045465,0.00381263,41970.0,41969.0,1.09023817]
[1642664045867,0.00381263,41970.0,41969.0,2.10484887]
[1642664046666,0.00381263,41970.0,41969.0,1.39521487]
[1642664047467,0.00381263,41970.0,41969.0,2.09419912]
[1642664048066,0.00381263,41970.0,41969.0,2.10519912]
[1642664049112,0.00381263,41970.0,41969.0,0.38060417]
[1642664049314,0.00381263,41970.0,41969.0,0.36960417]
[1642664049516,0.00381263,41970.0,41969.0,0.97820105]
[1642664049912,0.00381263,41970.0,41969.0,0.36960417]
[1642664050112,0.02881263,41970.0,41969.0,0.37960417]
[1642664050523,0.07881263,41970.0,41969.0,0.37960417]
[1642664051114,0.07881263,41970.0,41969.0,0.01]
[1642664051514,0.18254189,41970.0,41968.0,0.60862263]
[1642664051713,0.23931633,41970.0,41968.0,0.60862263]
[1642664052113,0.23931633,41970.0,41968.0,0.61962263]
[1642664053072,0.12016333,41970.0,41968.0,0.61962263]
[1642664053476,0.12016333,41970.0,41968.0,0.60862263]
[1642664053876,0.06058707,41970.0,41968.0,0.60862263]
[1642664054074,0.06058707,41970.0,41968.0,0.62062263]
[1642664054475,0.06058707,41970.0,41969.0,0.384528]
[1642664056080,0.06058707,41970.0,41969.0,1.39914463]
[1642664056276,0.06050987,41970.0,41969.0,1.00412667]
[1642664056476,0.06050987,41970.0,41969.0,0.61549035]
[1642664057117,0.06050987,41970.0,41969.0,0.00689168]
[1642664057315,0.06050987,41970.0,41969.0,0.39141968]
[1642664057516,0.06050987,41970.0,41969.0,0.384528]
[1642664057933,0.06050987,41970.0,41969.0,1.36776941]
[1642664057934,0.05373543,41970.0,41969.0,1.36776941]
[1642664058118,0.00373543,41970.0,41969.0,2.39337971]
[1642664058316,0.05373543,41970.0,41969.0,2.39337971]
[1642664058621,0.00373543,41970.0,41969.0,2.39337971]
[1642664059117,0.00373543,41970.0,41969.0,2.12012255]
[1642664059515,0.00373543,41970.0,41969.0,2.10912255]
[1642664060117,0.00373543,41970.0,41969.0,2.12012255]
[1642664061377,0.00373543,41970.0,41969.0,2.10912255]
[1642664062275,0.00373543,41970.0,41969.0,2.11912255]
[1642664063276,0.00373543,41970.0,41969.0,0.394528]
[1642664063477,0.00373543,41970.0,41969.0,0.384528]
[1642664064121,0.00373543,41970.0,41969.0,0.395528]
[1642664064522,0.00373543,41970.0,41969.0,1.0039665]
[1642664064928,0.00373543,41970.0,41969.0,0.395528]
[1642664065423,0.00373543,41970.0,41969.0,0.384528]
[1642664066227,0.00373543,41970.0,41969.0,0.395528]
[1642664067426,0.00373543,41970.0,41969.0,0.384528]
[1642664068265,0.00373543,41970.0,41969.0,0.395528]
[1642664069765,0.00373543,41970.0,41969.0,0.384528]
[1642664070367,0.00373543,41970.0,41969.0,0.395528]
[1642664070566,0.00373543,41970.0,41969.0,1.00332671]
[1642664071069,0.00373543,41970.0,41969.0,0.395528]
[1642664071622,0.00373543,41970.0,41969.0,0.384528]
[1642664072119,0.00373543,41970.0,41969.0,0.99207841]
[1642664072318,0.00373543,41970.0,41969.0,0.395528]
[1642664072726,0.00373543,41970.0,41969.0,1.00307841]
[1642664073521,0.00373543,41970.0,41969.0,0.99207841]
[1642664074420,0.00373543,41970.0,41969.0,1.00307841]
[1642664075024,0.00373543,41970.0,41969.0,1.32098425]
[1642664075222,0.00373543,41970.0,41969.0,2.4380153]
[1642664075471,0.00373543,41970.0,41969.0,2.12010946]
[1642664075670,0.00373543,41970.0,41969.0,2.10910946]
[1642664075869,0.00373543,41970.0,41969.0,1.39912521]
[1642664076070,0.00373543,41970.0,41969.0,1.09324528]
[1642664076270,0.00373543,41970.0,41969.0,1.41012521]
[1642664077670,0.00373543,41970.0,41969.0,1.39912521]
[1642664078270,0.00373543,41970.0,41969.0,1.41212521]
[1642664079520,0.00373543,41970.0,41969.0,1.39912521]
[1642664079715,0.00367355,41970.0,41969.0,1.39912521]
[1642664080315,0.00367355,41970.0,41969.0,1.41312521]
[1642664081518,0.00367355,41970.0,41969.0,1.39912521]
[1642664082317,0.00367355,41970.0,41969.0,1.41212521]
[1642664083672,0.00367355,41970.0,41969.0,1.39912521]
[1642664084072,0.0002,41970.0,41969.0,1.39912521]
[1642664084473,0.0002,41970.0,41969.0,1.41312521]
[1642664086077,0.0002,41970.0,41969.0,1.52181921]
[1642664086276,0.0002,41970.0,41969.0,1.54995921]
[1642664086477,0.059558,41975.0,41972.0,0.203836]
[1642664086719,0.059558,41975.0,41974.0,0.60720434]
[1642664086921,0.059558,41975.0,41974.0,0.9918005]
[1642664087120,0.09712082,41975.0,41974.0,0.9918005]
[1642664087326,0.10962676,41975.0,41974.0,0.9918005]
[1642664087519,0.14773042,41975.0,41974.0,0.9918005]
[1642664088420,0.14773042,41975.0,41974.0,1.0018005]
[1642664088620,0.10962676,41975.0,41974.0,1.0018005]
[1642664089021,0.11320744,41975.0,41974.0,1.0018005]
[1642664089620,0.11320744,41975.0,41974.0,0.9918005]
[1642664089928,0.06320744,41975.0,41974.0,0.9918005]
[1642664090121,0.11320744,41975.0,41974.0,0.9918005]
[1642664090367,0.11320744,41975.0,41974.0,1.0028005]
[1642664090772,0.11320744,41975.0,41974.0,0.39559616]
[1642664091368,0.06320744,41975.0,41974.0,0.01106816]
[1642664091667,0.11320744,41975.0,41974.0,6.816e-05]
[1642664092368,0.06320744,41975.0,41974.0,0.01006816]
[1642664092574,0.11320744,41975.0,41974.0,0.01006816]
[1642664092968,0.06320744,41975.0,41974.0,0.01006816]
[1642664093569,0.10917854,41975.0,41974.0,6.816e-05]
[1642664093768,0.15917854,41975.0,41974.0,6.816e-05]
[1642664093968,0.15559786,41975.0,41974.0,6.816e-05]
[1642664094417,0.15559786,41975.0,41974.0,0.01006816]
[1642664095619,0.15559786,41975.0,41974.0,6.816e-05]
[1642664096520,0.15559786,41975.0,41974.0,0.00906816]
[1642664097621,0.15559786,41975.0,41974.0,6.816e-05]
[1642664098363,0.15559786,41975.0,41974.0,0.01006816]
[1642664098865,0.15917854,41975.0,41974.0,0.01006816]
[1642664099667,0.15917854,41975.0,41974.0,6.816e-05]
[1642664100470,0.15917854,41975.0,41974.0,0.01106816]
[1642664101715,0.15917854,41975.0,41974.0,6.816e-05]
[1642664102415,0.15917854,41975.0,41974.0,0.01106816]
[1642664103616,0.15917854,41975.0,41974.0,6.816e-05]
[1642664104424,0.15917854,41975.0,41974.0,0.01006816]
[1642664104620,0.15754906,41975.0,41974.0,0.51006816]
[1642664104821,0.15754906,41975.0,41974.0,0.89459616]
[1642664105773,0.15754906,41975.0,41974.0,0.88459616]
[1642664106369,0.15754906,41975.0,41974.0,0.89459616]
[1642664106568,0.15754906,41975.0,41974.0,0.39459616]
[1642664107772,0.15754906,41975.0,41974.0,0.38459616]
[1642664108479,0.15754906,41975.0,41974.0,0.39459616]
[1642664109115,0.06157796,41975.0,41974.0,0.39459616]
[1642664109320,0.11157796,41975.0,41974.0,0.39459616]
[1642664109516,0.06157796,41975.0,41974.0,0.39459616]
[1642664109716,0.11157796,41975.0,41974.0,0.38459616]
[1642664110117,0.06157796,41975.0,41974.0,0.38459616]
[1642664110527,0.06157796,41975.0,41974.0,0.39459616]
[1642664111417,0.11157796,41975.0,41974.0,0.39459616]
[1642664111719,0.11157796,41975.0,41974.0,0.38459616]
[1642664112517,0.11157796,41975.0,41974.0,0.39459616]
[1642664114275,0.11157796,41975.0,41974.0,0.01006816]
[1642664114473,0.12557796,41975.0,41974.0,0.02006816]
[1642664115771,0.11157796,41975.0,41974.0,6.816e-05]
[1642664116621,0.12157796,41975.0,41974.0,0.00906816]
[1642664118021,0.11157796,41975.0,41974.0,6.816e-05]
[1642664118421,0.12757796,41975.0,41974.0,0.00906816]
[1642664119823,0.11157796,41975.0,41974.0,6.816e-05]
[1642664120576,0.12957796,41975.0,41974.0,0.00906816]
[1642664121873,0.11157796,41975.0,41974.0,6.816e-05]
[1642664122474,0.12357796,41975.0,41974.0,0.00906816]
[1642664123876,0.11157796,41975.0,41974.0,6.816e-05]
[1642664124116,0.10799728,41975.0,41974.0,6.816e-05]
[1642664124720,0.12045916,41975.0,41974.0,0.00906816]
[1642664125822,0.12045916,41975.0,41974.0,6.816e-05]
[1642664125823,0.10745916,41975.0,41974.0,6.816e-05]
[1642664126618,0.11945916,41975.0,41974.0,0.00906816]
[1642664126826,0.06945916,41975.0,41974.0,0.40906816]
[1642664127025,0.11945916,41975.0,41974.0,0.79359616]
[1642664127719,0.11945916,41975.0,41974.0,0.78459616]
[1642664127980,0.10745916,41975.0,41974.0,0.78459616]
[1642664128469,0.12545916,41975.0,41974.0,0.79359616]
[1642664128969,0.12903984,41975.0,41974.0,0.39361452]
[1642664129769,0.11103984,41975.0,41974.0,0.38461452]
[1642664129969,0.06103984,41975.0,41974.0,0.38461452]
[1642664130169,0.11103984,41975.0,41974.0,0.38461452]
[1642664130570,0.12603984,41975.0,41974.0,0.39361452]
[1642664131718,0.11103984,41975.0,41974.0,8.652e-05]
[1642664132517,0.12703984,41975.0,41974.0,0.00908652]
[1642664133717,0.11103984,41975.0,41974.0,8.652e-05]
[1642664134118,0.06103984,41975.0,41974.0,8.652e-05]
[1642664134518,0.07703984,41975.0,41974.0,0.00908652]
[1642664134723,0.12703984,41975.0,41974.0,0.00901738]
[1642664135119,0.12703984,41975.0,41972.0,0.00104217]
[1642664135367,0.18660684,41975.0,41972.0,0.00112869]
[1642664135570,0.119134,41974.0,41972.0,8.652e-05]
[1642664135769,0.05,41973.0,41972.0,8.652e-05]
[1642664136470,0.05,41973.0,41972.0,0.01108652]
[1642664137867,0.05,41973.0,41972.0,8.652e-05]
[1642664138469,0.05,41973.0,41972.0,0.01108652]
[1642664139722,0.03705897,41973.0,41972.0,8.652e-05]
[1642664140520,0.03705897,41973.0,41972.0,0.011]
[1642664141823,0.03705897,41973.0,41970.0,0.00104223]
[1642664142023,0.03705897,41973.0,41971.0,0.384528]
[1642664142222,0.03705897,41973.0,41970.0,0.00104223]
[1642664142624,0.05905897,41973.0,41971.0,0.01]
[1642664143667,0.05905897,41973.0,41972.0,0.384528]
[1642664143869,0.03705897,41973.0,41972.0,0.384528]
[1642664144069,0.04063853,41973.0,41972.0,0.384528]
[1642664144470,0.04063853,41973.0,41972.0,0.396528]
[1642664144672,0.04063853,41973.0,41972.0,0.6926247]
[1642664145272,0.04063853,41973.0,41972.0,2.41565587]
[1642664145473,0.00357956,41973.0,41972.0,2.41565587]
[1642664145873,0.00357956,41973.0,41972.0,2.40365587]
[1642664146727,0.00357956,41973.0,41972.0,2.41765587]
[1642664147132,0.00357956,41973.0,41972.0,2.52956587]
[1642664147843,0.00357956,41973.0,41972.0,1.8071608]
[1642664148630,0.00357956,41973.0,41972.0,2.52931181]
[1642664149030,0.05963476,41975.0,41972.0,2.52931181]
[1642664149333,0.05963476,41975.0,41974.0,1.46969912]
[1642664149531,6.876e-05,41975.0,41974.0,2.2251941]
[1642664150510,0.31644936,41985.0,41974.0,2.2251941]
[1642664150511,1.3451,41990.0,41987.0,0.01506614]
[1642664150801,0.42,41990.0,41989.0,0.00129609]
[1642664150999,0.804528,41990.0,41989.0,0.00129609]
[1642664151401,0.804528,41990.0,41989.0,0.16515223]
[1642664152699,0.804528,41990.0,41989.0,0.16815223]
[1642664153900,0.804528,41990.0,41989.0,0.16515223]
[1642664154521,0.804528,41990.0,41989.0,0.16815223]
[1642664155830,0.804528,41990.0,41989.0,0.16515223]
[1642664156625,0.804528,41990.0,41989.0,0.16615223]
[1642664156824,0.804528,41990.0,41989.0,0.38615223]
[1642664157893,0.804528,41990.0,41989.0,0.38515223]
[1642664158694,0.804528,41990.0,41989.0,0.38715223]
[1642664159896,0.804528,41990.0,41989.0,0.38515223]
[1642664159897,0.42,41990.0,41989.0,0.38515223]
[1642664160698,0.42,41990.0,41989.0,0.38815223]
[1642664161821,0.42,41990.0,41989.0,0.88515223]
[1642664162626,0.41832339,41990.0,41989.0,0.88815223]
[1642664163825,0.41832339,41990.0,41989.0,0.88515223]
[1642664164626,0.41832339,41990.0,41989.0,0.88715223]
[1642664165880,0.41832339,41990.0,41989.0,0.88515223]
[1642664166681,0.41832339,41990.0,41989.0,0.88615223]
[1642664167981,0.41832339,41990.0,41989.0,0.88515223]
[1642664168283,2.9275736,41990.0,41989.0,0.88515223]
[1642664168682,2.9275736,41990.0,41989.0,0.88815223]
[1642664168887,0.41832339,41990.0,41989.0,0.88815223]
[1642664169946,0.41832339,41990.0,41989.0,0.88515223]
[1642664170744,0.41832339,41990.0,41989.0,0.88715223]
[1642664171947,0.41832339,41990.0,41989.0,0.88515223]
[1642664172346,0.41832339,41990.0,41989.0,0.38515223]
[1642664172748,0.41832339,41990.0,41989.0,0.38715223]
[1642664173184,2.57069756,41990.0,41989.0,0.38715223]
[1642664173485,2.57069756,41990.0,41989.0,0.88715223]
[1642664173885,2.57069756,41990.0,41989.0,0.88515223]
[1642664174686,2.57069756,41990.0,41989.0,0.88715223]
[1642664175988,2.57069756,41990.0,41989.0,0.88515223]
[1642664176187,0.41832339,41990.0,41989.0,0.88515223]
[1642664176633,0.41832339,41990.0,41989.0,0.88915223]
[1642664177830,0.41832339,41990.0,41989.0,0.88515223]
[1642664178130,2.35600643,41990.0,41989.0,0.88515223]
[1642664178331,2.35600643,41990.0,41989.0,0.88385614]
[1642664178631,2.35600643,41990.0,41989.0,0.88785614]
[1642664179237,2.35600643,41990.0,41989.0,0.38785614]
[1642664179632,0.41832339,41990.0,41989.0,0.38785614]
[1642664180133,0.41832339,41990.0,41989.0,0.38385614]
[1642664180373,0.41832339,41990.0,41989.0,0.88385614]
[1642664180775,0.41832339,41990.0,41989.0,0.88785614]
[1642664181975,0.41832339,41990.0,41989.0,0.38785614]
[1642664182577,0.41832339,41990.0,41989.0,0.38385614]
[1642664182778,0.41832339,41990.0,41989.0,0.38785614]
[1642664185727,0.41832339,41990.0,41989.0,0.74511686]
[1642664185926,0.41832339,41990.0,41989.0,1.19975142]
[1642664186125,0.41832339,41990.0,41989.0,1.12964486]
[1642664186930,0.41832339,41990.0,41989.0,1.64155486]
[1642664187226,0.41832339,41990.0,41989.0,1.64955486]
[1642664187876,0.41832339,41990.0,41989.0,1.63755486]
[1642664188679,0.41832339,41990.0,41989.0,1.64655486]
[1642664190175,0.41832339,41990.0,41989.0,1.63755486]
[1642664190773,0.41832339,41990.0,41989.0,1.64655486]
[1642664192430,0.41832339,41990.0,41989.0,1.3286506]
[1642664192632,0.41832339,41990.0,41989.0,1.3196506]
[1642664192832,0.41832339,41990.0,41989.0,1.3286506]
[1642664193434,0.41832339,41990.0,41989.0,1.3381846]
[1642664193837,0.41832339,41990.0,41989.0,1.3286506]
[1642664196883,0.41832339,41990.0,41989.0,1.3366506]
[1642664197284,0.41832339,41990.0,41989.0,1.3461846]
[1642664197479,0.41832339,41990.0,41989.0,1.3366506]
[1642664198086,0.41832339,41990.0,41989.0,1.3696506]
[1642664198682,0.41832339,41990.0,41989.0,1.2786506]
[1642664199726,0.41832339,41990.0,41989.0,1.3786506]
[1642664199932,0.41832339,41990.0,41989.0,1.3196506]
[1642664200725,0.41832339,41990.0,41989.0,1.3286506]
[1642664201131,0.0010941,41992.0,41990.0,1.30065132]
[1642664201331,0.0010941,41992.0,41991.0,2.23108031]
[1642664201531,0.0666,42000.0,41991.0,4.14647481]
[1642664201730,0.81068454,41998.0,41993.0,0.00704313]
[1642664201929,0.81068454,41998.0,41996.0,0.33545678]
[1642664202129,1.8248944,41998.0,41997.0,1.10475242]